[Event "Early-Titled-Tuesday-Blitz-February-13-2024"]
[Site "Chess.com"]
[Date "2024.02.13"]
[Round "1"]
[White "Ready4abattle"]
[Black "sergeikim"]
[Result "0-1"]
[WhiteElo "2248"]
[BlackElo "2611"]
[TimeControl "180+1"]
[EndTime "8:07:59 PST"]
[Termination "sergeikim won on time"]

1. e4 {[%clk 0:03:00.9]} 1... e5 {[%clk 0:02:59]} 2. Nf3 {[%clk 0:03:00.8]} 2...
Nc6 {[%clk 0:02:59.2]} 3. Bc4 {[%clk 0:03:01.4]} 3... Bc5 {[%clk 0:02:58.1]} 4.
b4 {[%clk 0:03:01.1]} 4... Bxb4 {[%clk 0:02:57.5]} 5. c3 {[%clk 0:03:01]} 5...
Ba5 {[%clk 0:02:57.5]} 6. Qb3 {[%clk 0:03:00.9]} 6... Qe7 {[%clk 0:02:55.9]} 7.
d4 {[%clk 0:03:00.9]} 7... Bb6 {[%clk 0:02:34.5]} 8. O-O {[%clk 0:02:57]} 8...
Na5 {[%clk 0:02:32.2]} 9. Qa4 {[%clk 0:02:57]} 9... Nxc4 {[%clk 0:02:31.8]} 10.
Qxc4 {[%clk 0:02:57.9]} 10... d6 {[%clk 0:02:22.7]} 11. a4 {[%clk 0:02:57.8]}
11... a6 {[%clk 0:02:19.3]} 12. a5 {[%clk 0:02:51.7]} 12... Ba7 {[%clk
0:02:18.9]} 13. dxe5 {[%clk 0:02:50.6]} 13... Be6 {[%clk 0:02:12.8]} 14. Qa4+
{[%clk 0:02:44.6]} 14... Bd7 {[%clk 0:02:07.8]} 15. Qb3 {[%clk 0:02:44.1]} 15...
Bc6 {[%clk 0:02:01.5]} 16. Nbd2 {[%clk 0:02:25]} 16... O-O-O {[%clk 0:01:58.5]}
17. Ba3 {[%clk 0:02:14.4]} 17... Qe6 {[%clk 0:01:46]} 18. Qxe6+ {[%clk 0:02:06]}
18... fxe6 {[%clk 0:01:45.1]} 19. exd6 {[%clk 0:02:06.6]} 19... cxd6 {[%clk
0:01:45.1]} 20. Ng5 {[%clk 0:02:04.5]} 20... Nh6 {[%clk 0:01:42.7]} 21. Nxe6
{[%clk 0:02:00.8]} 21... Rd7 {[%clk 0:01:41.3]} 22. Nc4 {[%clk 0:01:56.1]} 22...
Bxe4 {[%clk 0:01:32]} 23. Nxd6+ {[%clk 0:01:44.8]} 23... Rxd6 {[%clk 0:01:32.5]}
24. Bxd6 {[%clk 0:01:45.7]} 24... Nf5 {[%clk 0:01:25.7]} 25. Bc5 {[%clk
0:01:44.2]} 25... Bb8 {[%clk 0:01:23.8]} 26. Rfe1 {[%clk 0:01:39.8]} 26... Bc6
{[%clk 0:01:22.4]} 27. Rad1 {[%clk 0:01:34.3]} 27... Rg8 {[%clk 0:01:13.1]} 28.
Bb6 {[%clk 0:01:22.7]} 28... Nh4 {[%clk 0:01:04.9]} 29. f3 {[%clk 0:01:19.1]}
29... Nf5 {[%clk 0:00:56.3]} 30. Kf2 {[%clk 0:01:10.1]} 30... Bxh2 {[%clk
0:00:53.1]} 31. Rh1 {[%clk 0:00:53.2]} 31... Bg3+ {[%clk 0:00:48.6]} 32. Kg1
{[%clk 0:00:53]} 32... h6 {[%clk 0:00:45.6]} 33. Nd4 {[%clk 0:00:48.2]} 33...
Nxd4 {[%clk 0:00:43.7]} 34. cxd4 {[%clk 0:00:47]} 34... Kd7 {[%clk 0:00:39.3]}
35. d5 {[%clk 0:00:45.6]} 35... Bb5 {[%clk 0:00:39.4]} 36. Rh3 {[%clk
0:00:43.8]} 36... Bd6 {[%clk 0:00:38.3]} 37. Rh4 {[%clk 0:00:41.9]} 37... Rc8
{[%clk 0:00:33.8]} 38. Rg4 {[%clk 0:00:38.1]} 38... g5 {[%clk 0:00:33]} 39. Rd2
{[%clk 0:00:37.2]} 39... Bf4 {[%clk 0:00:31.9]} 40. Rb2 {[%clk 0:00:32]} 40...
h5 {[%clk 0:00:29.9]} 41. Rxf4 {[%clk 0:00:25.1]} 41... gxf4 {[%clk 0:00:30.8]}
42. Kf2 {[%clk 0:00:24.9]} 42... Rc4 {[%clk 0:00:27.7]} 43. g3 {[%clk
0:00:20.5]} 43... fxg3+ {[%clk 0:00:25.4]} 44. Kxg3 {[%clk 0:00:21.4]} 44... h4+
{[%clk 0:00:23.6]} 45. Kh3 {[%clk 0:00:21]} 45... Rc3 {[%clk 0:00:22.8]} 46. Kg4
{[%clk 0:00:20.5]} 46... Rd3 {[%clk 0:00:23.1]} 47. Rh2 {[%clk 0:00:18.9]} 47...
Rxd5 {[%clk 0:00:21.3]} 48. Rxh4 {[%clk 0:00:18.8]} 48... Bd3 {[%clk 0:00:21.1]}
49. Rh6 {[%clk 0:00:18.7]} 49... Bf5+ {[%clk 0:00:19.9]} 50. Kf4 {[%clk
0:00:18.3]} 50... Be6 {[%clk 0:00:20.1]} 51. Rh7+ {[%clk 0:00:18.5]} 51... Kc6
{[%clk 0:00:19.7]} 52. Ke4 {[%clk 0:00:19]} 52... Bf5+ {[%clk 0:00:15.8]} 0-1

[Event "Early-Titled-Tuesday-Blitz-February-13-2024"]
[Site "Chess.com"]
[Date "2024.02.13"]
[Round "1"]
[White "Sokoloco"]
[Black "MIss_MIaMI"]
[Result "1-0"]
[WhiteElo "2764"]
[BlackElo "2425"]
[TimeControl "180+1"]
[EndTime "8:08:02 PST"]
[Termination "Sokoloco won by checkmate"]

1. b3 {[%clk 0:03:00.9]} 1... c5 {[%clk 0:03:00]} 2. Bb2 {[%clk 0:03:00.4]} 2...
e6 {[%clk 0:03:00.2]} 3. e3 {[%clk 0:03:01]} 3... Nf6 {[%clk 0:02:59.8]} 4. d4
{[%clk 0:03:01.5]} 4... cxd4 {[%clk 0:02:59.5]} 5. exd4 {[%clk 0:03:02.4]} 5...
Nc6 {[%clk 0:02:59]} 6. Nf3 {[%clk 0:03:02.6]} 6... Be7 {[%clk 0:02:59.5]} 7.
Bd3 {[%clk 0:03:02.6]} 7... O-O {[%clk 0:03:00]} 8. O-O {[%clk 0:03:03.2]} 8...
h6 {[%clk 0:03:00.5]} 9. Nbd2 {[%clk 0:03:01.1]} 9... d5 {[%clk 0:03:00.2]} 10.
c4 {[%clk 0:02:55.1]} 10... b6 {[%clk 0:02:56.2]} 11. Rc1 {[%clk 0:02:47.2]}
11... Bb7 {[%clk 0:02:40.2]} 12. Qe2 {[%clk 0:02:45.9]} 12... Rc8 {[%clk
0:02:34]} 13. Rfd1 {[%clk 0:02:45.1]} 13... Qc7 {[%clk 0:02:25]} 14. Ne5 {[%clk
0:02:38.8]} 14... Qb8 {[%clk 0:02:06.3]} 15. cxd5 {[%clk 0:02:26.6]} 15... Nxe5
{[%clk 0:02:05.6]} 16. dxe5 {[%clk 0:02:21.5]} 16... Nxd5 {[%clk 0:02:04.2]} 17.
Qg4 {[%clk 0:01:27]} 17... Rxc1 {[%clk 0:01:50.1]} 18. Rxc1 {[%clk 0:01:27.9]}
18... Bg5 {[%clk 0:01:49.9]} 19. Rd1 {[%clk 0:01:28.3]} 19... Nf4 {[%clk
0:01:38.2]} 20. Bf1 {[%clk 0:01:15.5]} 20... Rd8 {[%clk 0:01:19]} 21. Nc4 {[%clk
0:01:10.8]} 21... Rxd1 {[%clk 0:00:57.2]} 22. Qxd1 {[%clk 0:01:11.7]} 22... Ng6
{[%clk 0:00:44.2]} 23. g3 {[%clk 0:01:07.7]} 23... Bd5 {[%clk 0:00:33.6]} 24. h4
{[%clk 0:01:06.7]} 24... Be7 {[%clk 0:00:33.6]} 25. Ne3 {[%clk 0:01:06.9]} 25...
Be4 {[%clk 0:00:31.4]} 26. Qd4 {[%clk 0:01:00.3]} 26... Ba8 {[%clk 0:00:28.4]}
27. b4 {[%clk 0:01:00.6]} 27... Qb7 {[%clk 0:00:28.4]} 28. Bg2 {[%clk
0:01:00.9]} 28... Qb8 {[%clk 0:00:27.3]} 29. h5 {[%clk 0:00:52.6]} 29... Nf8
{[%clk 0:00:27]} 30. Bf1 {[%clk 0:00:44.4]} 30... a5 {[%clk 0:00:20.9]} 31. a3
{[%clk 0:00:44]} 31... axb4 {[%clk 0:00:21]} 32. axb4 {[%clk 0:00:44.9]} 32...
Qb7 {[%clk 0:00:21]} 33. Bg2 {[%clk 0:00:45.2]} 33... Qb8 {[%clk 0:00:21.7]} 34.
Bxa8 {[%clk 0:00:45.4]} 34... Qxa8 {[%clk 0:00:22.6]} 35. Qxb6 {[%clk
0:00:41.2]} 35... Qa2 {[%clk 0:00:21]} 36. Qd4 {[%clk 0:00:39.6]} 36... Qb1+
{[%clk 0:00:20.1]} 37. Kg2 {[%clk 0:00:40.1]} 37... Qe1 {[%clk 0:00:19.8]} 38.
Qc3 {[%clk 0:00:36.4]} 38... Qb1 {[%clk 0:00:18.5]} 39. Qd4 {[%clk 0:00:34.1]}
39... Kh7 {[%clk 0:00:18.7]} 40. b5 {[%clk 0:00:32.8]} 40... Qe1 {[%clk
0:00:18.4]} 41. b6 {[%clk 0:00:30.7]} 41... Qa5 {[%clk 0:00:18.4]} 42. Qd3+
{[%clk 0:00:27.9]} 42... Kg8 {[%clk 0:00:17.7]} 43. Qb3 {[%clk 0:00:28.4]} 43...
Qa8+ {[%clk 0:00:17.5]} 44. b7 {[%clk 0:00:28.7]} 44... Qb8 {[%clk 0:00:18.3]}
45. Bd4 {[%clk 0:00:29]} 45... Nd7 {[%clk 0:00:18.7]} 46. Nc4 {[%clk 0:00:29.2]}
46... Bd8 {[%clk 0:00:17.1]} 47. Qb5 {[%clk 0:00:27]} 47... Qc7 {[%clk 0:00:15]}
48. Ba7 {[%clk 0:00:21.6]} 48... Nb8 {[%clk 0:00:15]} 49. Na5 {[%clk 0:00:16.9]}
49... Qxa5 {[%clk 0:00:13]} 50. Qxa5 {[%clk 0:00:17.2]} 50... Bxa5 {[%clk
0:00:13.8]} 51. Bxb8 {[%clk 0:00:17.7]} 51... Kf8 {[%clk 0:00:10.1]} 52. Bd6+
{[%clk 0:00:17.8]} 52... Ke8 {[%clk 0:00:11]} 53. b8=Q+ {[%clk 0:00:18.6]} 53...
Kd7 {[%clk 0:00:11.9]} 54. Qa7+ {[%clk 0:00:18.8]} 54... Kc6 {[%clk 0:00:12.1]}
55. Qxa5 {[%clk 0:00:19]} 55... f6 {[%clk 0:00:12.8]} 56. Qc7+ {[%clk
0:00:19.4]} 56... Kd5 {[%clk 0:00:12.9]} 57. Qc5+ {[%clk 0:00:19.8]} 57... Ke4
{[%clk 0:00:13.7]} 58. g4 {[%clk 0:00:20.1]} 58... Kf4 {[%clk 0:00:13.7]} 59.
Kh3 {[%clk 0:00:20.5]} 59... fxe5 {[%clk 0:00:13.2]} 60. Qe3# {[%clk 0:00:21.2]}
1-0

[Event "Early-Titled-Tuesday-Blitz-February-13-2024"]
[Site "Chess.com"]
[Date "2024.02.13"]
[Round "1"]
[White "DamianoLew95"]
[Black "Matols"]
[Result "1-0"]
[WhiteElo "2722"]
[BlackElo "2394"]
[TimeControl "180+1"]
[EndTime "8:08:02 PST"]
[Termination "DamianoLew95 won on time"]

1. e4 {[%clk 0:03:00.9]} 1... c6 {[%clk 0:02:59.9]} 2. Nf3 {[%clk 0:03:01.3]}
2... d5 {[%clk 0:03:00.1]} 3. d3 {[%clk 0:03:02.2]} 3... Bg4 {[%clk 0:02:56.1]}
4. h3 {[%clk 0:03:02.3]} 4... Bxf3 {[%clk 0:02:55.5]} 5. Qxf3 {[%clk 0:03:01.2]}
5... e6 {[%clk 0:02:55.2]} 6. Be2 {[%clk 0:02:59.2]} 6... Nf6 {[%clk 0:02:54.4]}
7. Nd2 {[%clk 0:02:59]} 7... Be7 {[%clk 0:02:54]} 8. O-O {[%clk 0:02:55.5]} 8...
Nbd7 {[%clk 0:02:53]} 9. Re1 {[%clk 0:02:53.1]} 9... O-O {[%clk 0:02:51.8]} 10.
d4 {[%clk 0:02:51.6]} 10... dxe4 {[%clk 0:02:45.2]} 11. Nxe4 {[%clk 0:02:52.5]}
11... Nxe4 {[%clk 0:02:45.4]} 12. Qxe4 {[%clk 0:02:52.8]} 12... Nf6 {[%clk
0:02:46]} 13. Qd3 {[%clk 0:02:52.1]} 13... c5 {[%clk 0:02:42.3]} 14. dxc5 {[%clk
0:02:50.1]} 14... Bxc5 {[%clk 0:02:43.2]} 15. Qxd8 {[%clk 0:02:49.4]} 15...
Rfxd8 {[%clk 0:02:44.1]} 16. Bf3 {[%clk 0:02:48.8]} 16... Nd5 {[%clk 0:02:19.2]}
17. c4 {[%clk 0:02:48.5]} 17... Nb4 {[%clk 0:02:18.8]} 18. Bxb7 {[%clk
0:02:47.5]} 18... Nc2 {[%clk 0:02:04.9]} 19. Bf4 {[%clk 0:01:49]} 19... Nxa1
{[%clk 0:01:49.2]} 20. Bxa8 {[%clk 0:01:27.4]} 20... Rxa8 {[%clk 0:01:37.6]} 21.
Rxa1 {[%clk 0:01:26.2]} 21... Bd4 {[%clk 0:01:37.5]} 22. Rb1 {[%clk 0:01:25.5]}
22... e5 {[%clk 0:01:35.2]} 23. Be3 {[%clk 0:01:25.1]} 23... Bxe3 {[%clk
0:01:32.2]} 24. fxe3 {[%clk 0:01:26]} 24... a5 {[%clk 0:01:32.3]} 25. Kf2 {[%clk
0:01:25]} 25... f6 {[%clk 0:01:31.9]} 26. Rd1 {[%clk 0:01:23.2]} 26... Ra7
{[%clk 0:01:28.2]} 27. Rd8+ {[%clk 0:01:22.2]} 27... Kf7 {[%clk 0:01:28.3]} 28.
Rb8 {[%clk 0:01:22.8]} 28... Ke6 {[%clk 0:01:26.3]} 29. Ke2 {[%clk 0:01:21.3]}
29... Kd6 {[%clk 0:01:14.3]} 30. Kd3 {[%clk 0:01:19.3]} 30... Kc5 {[%clk
0:01:05.7]} 31. Kc3 {[%clk 0:01:18]} 31... f5 {[%clk 0:00:52.6]} 32. Rd8 {[%clk
0:01:10.8]} 32... f4 {[%clk 0:00:22.6]} 33. Rd5+ {[%clk 0:01:04.1]} 33... Kc6
{[%clk 0:00:22.3]} 34. Rxe5 {[%clk 0:01:04.6]} 34... fxe3 {[%clk 0:00:21.6]} 35.
Rxe3 {[%clk 0:01:05.5]} 35... Rf7 {[%clk 0:00:21.2]} 36. Rf3 {[%clk 0:01:02]}
36... Re7 {[%clk 0:00:21.1]} 37. Rg3 {[%clk 0:00:56.3]} 37... g6 {[%clk
0:00:20.3]} 38. a3 {[%clk 0:00:51.6]} 38... a4 {[%clk 0:00:17.6]} 39. Rd3 {[%clk
0:00:26.9]} 39... Re2 {[%clk 0:00:16.2]} 40. Rd2 {[%clk 0:00:26.8]} 40... Re4
{[%clk 0:00:12.9]} 41. Kb4 {[%clk 0:00:26.2]} 41... h6 {[%clk 0:00:11.2]} 42.
Rc2 {[%clk 0:00:25.8]} 42... g5 {[%clk 0:00:08.6]} 43. Kxa4 {[%clk 0:00:26]}
43... g4 {[%clk 0:00:07.3]} 44. hxg4 {[%clk 0:00:25]} 44... Rxg4 {[%clk
0:00:08.2]} 45. Kb4 {[%clk 0:00:25.3]} 45... h5 {[%clk 0:00:07.8]} 46. Rf2
{[%clk 0:00:25.2]} 46... h4 {[%clk 0:00:07.6]} 47. b3 {[%clk 0:00:25]} 47... Rg3
{[%clk 0:00:07.3]} 48. Rf6+ {[%clk 0:00:24.1]} 48... Kc7 {[%clk 0:00:07]} 49.
Rh6 {[%clk 0:00:25]} 49... Rxg2 {[%clk 0:00:06]} 50. Rxh4 {[%clk 0:00:24.9]}
50... Rg5 {[%clk 0:00:05.6]} 51. Rh6 {[%clk 0:00:23.6]} 51... Rg3 {[%clk
0:00:05]} 52. a4 {[%clk 0:00:23.2]} 52... Rf3 {[%clk 0:00:04.3]} 53. a5 {[%clk
0:00:23.3]} 53... Rg3 {[%clk 0:00:03.8]} 54. Ka4 {[%clk 0:00:23.6]} 54... Kb7
{[%clk 0:00:03.1]} 55. b4 {[%clk 0:00:23.8]} 55... Rg1 {[%clk 0:00:03.1]} 56.
Rh7+ {[%clk 0:00:23.7]} 56... Ka8 {[%clk 0:00:01.8]} 57. Kb5 {[%clk 0:00:24.1]}
1-0

[Event "Early-Titled-Tuesday-Blitz-February-13-2024"]
[Site "Chess.com"]
[Date "2024.02.13"]
[Round "1"]
[White "rachidhuilda"]
[Black "FREDERICKtheMATE"]
[Result "1/2-1/2"]
[WhiteElo "2322"]
[BlackElo "2644"]
[TimeControl "180+1"]
[EndTime "8:08:02 PST"]
[Termination "Game drawn - insufficient material"]

1. d4 {[%clk 0:02:59.6]} 1... Nf6 {[%clk 0:02:59]} 2. Nf3 {[%clk 0:02:59.7]}
2... d5 {[%clk 0:02:59]} 3. Bf4 {[%clk 0:02:58.8]} 3... c5 {[%clk 0:02:56.2]} 4.
e3 {[%clk 0:02:58.5]} 4... Nc6 {[%clk 0:02:56.6]} 5. Nbd2 {[%clk 0:02:58.5]}
5... Bf5 {[%clk 0:02:55.1]} 6. Bb5 {[%clk 0:02:54.1]} 6... e6 {[%clk 0:02:54.2]}
7. Ne5 {[%clk 0:02:53.1]} 7... Rc8 {[%clk 0:02:53.5]} 8. c3 {[%clk 0:02:47.8]}
8... Qb6 {[%clk 0:02:52.9]} 9. Qa4 {[%clk 0:02:19.7]} 9... a6 {[%clk 0:02:48.5]}
10. Bxc6+ {[%clk 0:02:18]} 10... bxc6 {[%clk 0:02:48.3]} 11. Qb3 {[%clk
0:02:03.9]} 11... Qb5 {[%clk 0:02:38.4]} 12. a4 {[%clk 0:01:56]} 12... Qxb3
{[%clk 0:02:38.2]} 13. Nxb3 {[%clk 0:01:56.1]} 13... c4 {[%clk 0:02:38.7]} 14.
Na5 {[%clk 0:01:25.2]} 14... c5 {[%clk 0:02:38.3]} 15. O-O {[%clk 0:01:22.7]}
15... Nh5 {[%clk 0:02:37.6]} 16. f3 {[%clk 0:01:03.3]} 16... Nxf4 {[%clk
0:02:37.1]} 17. exf4 {[%clk 0:01:03.7]} 17... h6 {[%clk 0:02:34.3]} 18. g4
{[%clk 0:00:59.9]} 18... Bh7 {[%clk 0:02:34.2]} 19. Rfe1 {[%clk 0:00:57.9]}
19... f6 {[%clk 0:02:31.3]} 20. Nec6 {[%clk 0:00:55.2]} 20... Kd7 {[%clk
0:02:31.2]} 21. Kg2 {[%clk 0:00:36.5]} 21... Bd6 {[%clk 0:02:29.3]} 22. f5
{[%clk 0:00:35.7]} 22... exf5 {[%clk 0:02:27.9]} 23. dxc5 {[%clk 0:00:29.8]}
23... Bxc5 {[%clk 0:02:24.8]} 24. Rad1 {[%clk 0:00:25.5]} 24... Bg8 {[%clk
0:02:13]} 25. Nd4 {[%clk 0:00:17.2]} 25... fxg4 {[%clk 0:02:10.1]} 26. fxg4
{[%clk 0:00:16.5]} 26... Bb6 {[%clk 0:02:09.8]} 27. Nac6 {[%clk 0:00:14.3]}
27... Bc5 {[%clk 0:02:03.8]} 28. Na5 {[%clk 0:00:11.2]} 28... Bf7 {[%clk
0:02:03.6]} 29. Nb7 {[%clk 0:00:10.8]} 29... Bb6 {[%clk 0:01:59.3]} 30. a5
{[%clk 0:00:10.8]} 30... Ba7 {[%clk 0:01:59.4]} 31. Nf5 {[%clk 0:00:08.6]} 31...
Rhe8 {[%clk 0:01:47.8]} 32. Nbd6 {[%clk 0:00:08.3]} 32... Rxe1 {[%clk
0:01:47.3]} 33. Rxe1 {[%clk 0:00:09.2]} 33... Rc7 {[%clk 0:01:45.8]} 34. Nxf7
{[%clk 0:00:08.9]} 34... Kc6 {[%clk 0:01:43.7]} 35. Re7 {[%clk 0:00:07.7]} 35...
Bc5 {[%clk 0:01:41.4]} 36. Rxc7+ {[%clk 0:00:07.3]} 36... Kxc7 {[%clk
0:01:42.3]} 37. h4 {[%clk 0:00:06]} 37... g6 {[%clk 0:01:39.7]} 38. N5xh6 {[%clk
0:00:05.2]} 38... Kd7 {[%clk 0:01:37]} 39. Kf3 {[%clk 0:00:06.1]} 39... Ke7
{[%clk 0:01:34.8]} 40. g5 {[%clk 0:00:06.5]} 40... d4 {[%clk 0:01:33.2]} 41.
gxf6+ {[%clk 0:00:05.7]} 41... Kxf6 {[%clk 0:01:34.1]} 42. cxd4 {[%clk
0:00:05.7]} 42... Bxd4 {[%clk 0:01:35]} 43. Nd6 {[%clk 0:00:05.6]} 43... Bxb2
{[%clk 0:01:34.8]} 44. Nxc4 {[%clk 0:00:06.2]} 44... Bc3 {[%clk 0:01:35.6]} 45.
Ng4+ {[%clk 0:00:06.2]} 45... Kf5 {[%clk 0:01:35.5]} 46. Nge3+ {[%clk
0:00:06.3]} 46... Ke6 {[%clk 0:01:36.1]} 47. Ke4 {[%clk 0:00:05.9]} 47... Be1
{[%clk 0:01:36.2]} 48. Ng4 {[%clk 0:00:05.4]} 48... Bxh4 {[%clk 0:01:35.8]} 49.
Nce3 {[%clk 0:00:05.5]} 49... Bd8 {[%clk 0:01:35.7]} 50. Nc4 {[%clk 0:00:04.8]}
50... g5 {[%clk 0:01:36.3]} 51. Nge3 {[%clk 0:00:05.3]} 51... Bc7 {[%clk
0:01:36.1]} 52. Nd5 {[%clk 0:00:05.4]} 52... Bd6 {[%clk 0:01:34.1]} 53. Nde3
{[%clk 0:00:05.5]} 53... Bb4 {[%clk 0:01:33.6]} 54. Nf5 {[%clk 0:00:05.5]} 54...
g4 {[%clk 0:01:33.1]} 55. Nfe3 {[%clk 0:00:05]} 55... g3 {[%clk 0:01:32.9]} 56.
Kf3 {[%clk 0:00:05.6]} 56... Be1 {[%clk 0:01:29.1]} 57. Ke2 {[%clk 0:00:04.4]}
57... Bf2 {[%clk 0:01:27.9]} 58. Kf3 {[%clk 0:00:04.9]} 58... Kd7 {[%clk
0:01:26.4]} 59. Nd1 {[%clk 0:00:05.1]} 59... Be1 {[%clk 0:01:24.9]} 60. Nce3
{[%clk 0:00:05.4]} 60... Kc6 {[%clk 0:01:23.5]} 61. Nf5 {[%clk 0:00:05.5]} 61...
Kb5 {[%clk 0:01:22.6]} 62. Nxg3 {[%clk 0:00:06]} 62... Bxa5 {[%clk 0:01:22.6]}
63. Ne4 {[%clk 0:00:06]} 63... Kc4 {[%clk 0:01:22.6]} 64. Ke2 {[%clk 0:00:06.9]}
64... Kb3 {[%clk 0:01:18.9]} 65. Nef2 {[%clk 0:00:07.8]} 65... Bb6 {[%clk
0:01:15.5]} 66. Nd3 {[%clk 0:00:08.7]} 66... a5 {[%clk 0:01:15.8]} 67. N1b2
{[%clk 0:00:08.5]} 67... Bd4 {[%clk 0:01:14.8]} 68. Nd1 {[%clk 0:00:05.9]} 68...
a4 {[%clk 0:01:15.1]} 69. Kd2 {[%clk 0:00:04.9]} 69... Bg7 {[%clk 0:01:08.8]}
70. Nc1+ {[%clk 0:00:05.3]} 70... Ka3 {[%clk 0:01:08.7]} 71. Kc2 {[%clk
0:00:05.5]} 71... Bh6 {[%clk 0:01:08.5]} 72. Nd3 {[%clk 0:00:05]} 72... Bg7
{[%clk 0:01:08.9]} 73. Nc3 {[%clk 0:00:05.3]} 73... Bxc3 {[%clk 0:01:08.1]} 74.
Kxc3 {[%clk 0:00:05.1]} 74... Ka2 {[%clk 0:01:09]} 75. Nb4+ {[%clk 0:00:04.8]}
75... Kb1 {[%clk 0:01:08.6]} 76. Nc2 {[%clk 0:00:04.2]} 76... Kc1 {[%clk
0:01:07.9]} 77. Kb4 {[%clk 0:00:04.4]} 77... Kd1 {[%clk 0:01:08.8]} 78. Kxa4
{[%clk 0:00:04.4]} 1/2-1/2

[Event "Early-Titled-Tuesday-Blitz-February-13-2024"]
[Site "Chess.com"]
[Date "2024.02.13"]
[Round "1"]
[White "Nechitaylo_Nikita"]
[Black "MKlose11"]
[Result "0-1"]
[WhiteElo "2299"]
[BlackElo "2644"]
[TimeControl "180+1"]
[EndTime "8:08:06 PST"]
[Termination "MKlose11 won by checkmate"]

1. d4 {[%clk 0:03:00.9]} 1... Nf6 {[%clk 0:02:58.1]} 2. c4 {[%clk 0:03:00.1]}
2... c5 {[%clk 0:02:59]} 3. d5 {[%clk 0:03:00.1]} 3... b5 {[%clk 0:02:57.8]} 4.
cxb5 {[%clk 0:03:01]} 4... a6 {[%clk 0:02:58.2]} 5. bxa6 {[%clk 0:03:01.5]} 5...
Bxa6 {[%clk 0:02:59]} 6. Nc3 {[%clk 0:03:01.3]} 6... d6 {[%clk 0:02:32.2]} 7. e4
{[%clk 0:02:43.2]} 7... Bxf1 {[%clk 0:02:31.4]} 8. Kxf1 {[%clk 0:02:44.1]} 8...
g6 {[%clk 0:02:31.9]} 9. Nf3 {[%clk 0:02:42.6]} 9... Bg7 {[%clk 0:02:32.3]} 10.
g3 {[%clk 0:02:43.2]} 10... O-O {[%clk 0:02:32.7]} 11. Kg2 {[%clk 0:02:43.9]}
11... Nbd7 {[%clk 0:02:32.6]} 12. a4 {[%clk 0:02:43.4]} 12... Ne8 {[%clk
0:02:32.7]} 13. Nd2 {[%clk 0:02:13.8]} 13... Nc7 {[%clk 0:02:26.6]} 14. Nc4
{[%clk 0:02:11.8]} 14... Qb8 {[%clk 0:02:25.8]} 15. Ra3 {[%clk 0:02:09.7]} 15...
Qa7 {[%clk 0:02:21.1]} 16. Bg5 {[%clk 0:01:25.6]} 16... Rfe8 {[%clk 0:02:19.8]}
17. Qc2 {[%clk 0:01:20.8]} 17... Nb6 {[%clk 0:02:06.9]} 18. Nb5 {[%clk 0:01:08]}
18... Qb7 {[%clk 0:01:47.6]} 19. Nxc7 {[%clk 0:00:45.7]} 19... Qxc7 {[%clk
0:01:46.5]} 20. Nxb6 {[%clk 0:00:43.7]} 20... Qxb6 {[%clk 0:01:45.3]} 21. b3
{[%clk 0:00:40.7]} 21... Ra7 {[%clk 0:01:36.9]} 22. Bd2 {[%clk 0:00:31.6]} 22...
Rb8 {[%clk 0:01:28.8]} 23. Qc4 {[%clk 0:00:27]} 23... Bb2 {[%clk 0:01:24.7]} 24.
Ra2 {[%clk 0:00:22.7]} 24... Qxb3 {[%clk 0:00:44.7]} 25. Qxb3 {[%clk 0:00:22.9]}
25... Rxb3 {[%clk 0:00:45.5]} 26. Rb1 {[%clk 0:00:23.3]} 26... Rab7 {[%clk
0:00:46.1]} 27. a5 {[%clk 0:00:23]} 27... Bd4 {[%clk 0:00:45.6]} 28. Rxb3 {[%clk
0:00:16.8]} 28... Rxb3 {[%clk 0:00:46.5]} 29. a6 {[%clk 0:00:17.5]} 29... Rb8
{[%clk 0:00:45.9]} 30. a7 {[%clk 0:00:07.5]} 30... Ra8 {[%clk 0:00:45.5]} 31.
Kf3 {[%clk 0:00:07.9]} 31... f5 {[%clk 0:00:38.9]} 32. exf5 {[%clk 0:00:07.2]}
32... gxf5 {[%clk 0:00:39.8]} 33. Ra6 {[%clk 0:00:05.8]} 33... Kf7 {[%clk
0:00:37.4]} 34. Ke2 {[%clk 0:00:02]} 34... Kf6 {[%clk 0:00:33]} 35. Kd3 {[%clk
0:00:02]} 35... Ke5 {[%clk 0:00:31.3]} 36. Ba5 {[%clk 0:00:01.9]} 36... Kxd5
{[%clk 0:00:30.1]} 37. Bc7 {[%clk 0:00:01.4]} 37... c4+ {[%clk 0:00:29.2]} 38.
Kd2 {[%clk 0:00:01.4]} 38... Rxa7 {[%clk 0:00:30.1]} 39. Rxa7 {[%clk 0:00:01.7]}
39... Bxa7 {[%clk 0:00:30.4]} 40. Bd8 {[%clk 0:00:01.9]} 40... e5 {[%clk
0:00:29.9]} 41. Be7 {[%clk 0:00:01.8]} 41... Bxf2 {[%clk 0:00:30]} 42. Bf8
{[%clk 0:00:01.8]} 42... Bg1 {[%clk 0:00:27.5]} 43. h4 {[%clk 0:00:01.8]} 43...
Bf2 {[%clk 0:00:27.4]} 44. g4 {[%clk 0:00:02.2]} 44... Bxh4 {[%clk 0:00:27.4]}
45. gxf5 {[%clk 0:00:02.3]} 45... Ke4 {[%clk 0:00:26.3]} 46. Bg7 {[%clk
0:00:02]} 46... Kxf5 {[%clk 0:00:25.3]} 47. Bf8 {[%clk 0:00:02.9]} 47... d5
{[%clk 0:00:25.7]} 48. Bc5 {[%clk 0:00:02.6]} 48... d4 {[%clk 0:00:25.9]} 49.
Kc2 {[%clk 0:00:02.5]} 49... Ke4 {[%clk 0:00:26.2]} 50. Kd2 {[%clk 0:00:03]}
50... Bf2 {[%clk 0:00:25.7]} 51. Kd1 {[%clk 0:00:03.9]} 51... Be3 {[%clk
0:00:25.4]} 52. Ke2 {[%clk 0:00:04.2]} 52... d3+ {[%clk 0:00:25.2]} 53. Kd1
{[%clk 0:00:05]} 53... Bxc5 {[%clk 0:00:25.5]} 54. Kd2 {[%clk 0:00:05.8]} 54...
Bb4+ {[%clk 0:00:22.1]} 55. Kd1 {[%clk 0:00:06.7]} 55... c3 {[%clk 0:00:22.1]}
56. Kc1 {[%clk 0:00:07.6]} 56... Ba3+ {[%clk 0:00:21.3]} 57. Kd1 {[%clk
0:00:08.5]} 57... c2+ {[%clk 0:00:21.8]} 58. Ke1 {[%clk 0:00:08.1]} 58... c1=Q+
{[%clk 0:00:22.2]} 59. Kf2 {[%clk 0:00:08.7]} 59... Qe3+ {[%clk 0:00:22.4]} 60.
Kg2 {[%clk 0:00:08]} 60... d2 {[%clk 0:00:21.7]} 61. Kh2 {[%clk 0:00:05.3]}
61... d1=Q {[%clk 0:00:21]} 62. Kg2 {[%clk 0:00:06]} 62... Qdd2+ {[%clk
0:00:21.7]} 63. Kf1 {[%clk 0:00:06.2]} 63... Qee1# {[%clk 0:00:22.6]} 0-1